[Event "Un Rapid per cominciare!"]
[Site "Chess.com"]
[Date "2020.04.10"]
[Round "2"]
[White "Niklas1205"]
[Black "Ollarov"]
[Result "0-1"]
[WhiteElo "1125"]
[BlackElo "1829"]
[TimeControl "720+3"]
[EndTime "11:52:48 PDT"]
[Termination "Ollarov ha vinto per scaccomatto"]

1. c3 {[%clk 0:12:02.9]} 1... Nf6 {[%clk 0:11:58.1]} 2. e3 {[%clk 0:12:03.1]}
2... g6 {[%clk 0:11:59.7]} 3. d4 {[%clk 0:12:03.9]} 3... Bg7 {[%clk 0:11:55.5]}
4. f3 {[%clk 0:12:02.1]} 4... O-O {[%clk 0:11:56.8]} 5. e4 {[%clk 0:12:02.9]}
5... d6 {[%clk 0:11:57.3]} 6. e5 {[%clk 0:12:04.2]} 6... dxe5 {[%clk 0:11:51.1]}
7. g3 {[%clk 0:11:56.7]} 7... exd4 {[%clk 0:11:52]} 8. cxd4 {[%clk 0:11:57]}
8... Nc6 {[%clk 0:11:50]} 9. d5 {[%clk 0:11:42.1]} 9... Nxd5 {[%clk 0:11:49.5]}
10. Bc4 {[%clk 0:11:37.8]} 10... e6 {[%clk 0:11:39.4]} 11. a3 {[%clk 0:11:32.3]}
11... a6 {[%clk 0:11:39.2]} 12. b4 {[%clk 0:11:31.5]} 12... b5 {[%clk
0:11:40.6]} 13. Bf1 {[%clk 0:11:29.1]} 13... Bb7 {[%clk 0:11:40.8]} 14. Nd2
{[%clk 0:11:23.9]} 14... Bxa1 {[%clk 0:11:41.2]} 15. Nb3 {[%clk 0:11:20.6]}
15... Bc3+ {[%clk 0:11:41.4]} 16. Kf2 {[%clk 0:11:18.8]} 16... Qf6 {[%clk
0:11:30.1]} 17. f4 {[%clk 0:11:10.5]} 17... Rad8 {[%clk 0:11:24.1]} 18. Bg2
{[%clk 0:11:00.6]} 18... Ndxb4 {[%clk 0:11:17.5]} 19. Qf3 {[%clk 0:10:53.7]}
19... Nd3+ {[%clk 0:11:14.8]} 20. Kf1 {[%clk 0:10:40.9]} 20... Nxc1 {[%clk
0:11:14.9]} 21. Ne2 {[%clk 0:10:21.3]} 21... Nxb3 {[%clk 0:11:05.3]} 22. Nxc3
{[%clk 0:10:13]} 22... Nd2+ {[%clk 0:11:00.4]} 23. Kf2 {[%clk 0:10:07.8]} 23...
Nxf3 {[%clk 0:10:58.8]} 24. Bxf3 {[%clk 0:10:07.6]} 24... Qxc3 {[%clk 0:11:00]}
25. Be2 {[%clk 0:09:58.1]} 25... Nd4 {[%clk 0:10:58.6]} 26. Bg4 {[%clk
0:09:55.4]} 26... Bxh1 {[%clk 0:10:55.9]} 27. Kg1 {[%clk 0:09:52]} 27... Qe1#
{[%clk 0:10:55.5]} 0-1

[Event "Un Rapid per cominciare!"]
[Site "Chess.com"]
[Date "2020.04.10"]
[Round "2"]
[White "ottovolante"]
[Black "mr6701"]
[Result "0-1"]
[WhiteElo "982"]
[BlackElo "1294"]
[TimeControl "720+3"]
[EndTime "11:58:23 PDT"]
[Termination "mr6701 ha vinto per scaccomatto"]

1. e4 {[%clk 0:12:02.9]} 1... d5 {[%clk 0:12:01.6]} 2. e5 {[%clk 0:12:03.8]}
2... c5 {[%clk 0:12:02.8]} 3. Nf3 {[%clk 0:12:03.2]} 3... Nc6 {[%clk 0:12:04.7]}
4. Bb5 {[%clk 0:12:03.5]} 4... a6 {[%clk 0:12:05.6]} 5. Bxc6+ {[%clk 0:12:04.7]}
5... bxc6 {[%clk 0:12:08.5]} 6. a3 {[%clk 0:11:58]} 6... Bg4 {[%clk 0:12:10.1]}
7. d3 {[%clk 0:11:54.5]} 7... Qc7 {[%clk 0:12:11.5]} 8. Qe2 {[%clk 0:11:53.1]}
8... Bxf3 {[%clk 0:12:06.8]} 9. Qxf3 {[%clk 0:11:53.2]} 9... Qxe5+ {[%clk
0:12:07.9]} 10. Qe3 {[%clk 0:11:50.5]} 10... Qd6 {[%clk 0:12:05.8]} 11. O-O
{[%clk 0:11:46.5]} 11... Nf6 {[%clk 0:12:05.4]} 12. Qf4 {[%clk 0:11:46.3]} 12...
e6 {[%clk 0:12:04.8]} 13. Qxd6 {[%clk 0:11:47.6]} 13... Bxd6 {[%clk 0:12:07.7]}
14. Bg5 {[%clk 0:11:45.2]} 14... Ng4 {[%clk 0:12:06.6]} 15. g3 {[%clk
0:11:36.7]} 15... Ne5 {[%clk 0:12:04.4]} 16. Kg2 {[%clk 0:11:27.3]} 16... c4
{[%clk 0:12:01.8]} 17. d4 {[%clk 0:11:24.9]} 17... Ng6 {[%clk 0:12:03.5]} 18.
Bf4 {[%clk 0:11:15.1]} 18... Nxf4+ {[%clk 0:11:57.5]} 19. gxf4 {[%clk
0:11:16.4]} 19... Bxf4 {[%clk 0:11:59.5]} 20. b3 {[%clk 0:11:13.1]} 20... cxb3
{[%clk 0:11:52]} 21. cxb3 {[%clk 0:11:13.5]} 21... O-O {[%clk 0:11:54.3]} 22. b4
{[%clk 0:11:14.6]} 22... a5 {[%clk 0:11:55.3]} 23. Kf3 {[%clk 0:11:08]} 23...
Bh6 {[%clk 0:11:54.6]} 24. Nc3 {[%clk 0:10:50.8]} 24... Bd2 {[%clk 0:11:48.2]}
25. Ne2 {[%clk 0:10:37.6]} 25... axb4 {[%clk 0:11:47.8]} 26. axb4 {[%clk
0:10:35.5]} 26... Bxb4 {[%clk 0:11:49.7]} 27. Rab1 {[%clk 0:10:33.2]} 27... c5
{[%clk 0:11:46.7]} 28. Nf4 {[%clk 0:10:22.8]} 28... Ra3+ {[%clk 0:11:41.5]} 29.
Kg4 {[%clk 0:10:22.9]} 29... Ra4 {[%clk 0:11:41.6]} 30. Rfd1 {[%clk 0:10:17.2]}
30... Ba5 {[%clk 0:11:20]} 31. Ne2 {[%clk 0:10:09.3]} 31... e5 {[%clk
0:11:19.1]} 32. f4 {[%clk 0:10:01.4]} 32... f5+ {[%clk 0:11:11.3]} 33. Kf3
{[%clk 0:09:57.1]} 33... e4+ {[%clk 0:11:07.6]} 34. Kf2 {[%clk 0:09:56.1]} 34...
cxd4 {[%clk 0:10:58]} 35. Kf1 {[%clk 0:09:51]} 35... d3 {[%clk 0:10:58.7]} 36.
Ng3 {[%clk 0:09:49.1]} 36... d2 {[%clk 0:10:55]} 37. Rb5 {[%clk 0:09:43.8]}
37... e3 {[%clk 0:10:32.2]} 38. Ke2 {[%clk 0:09:41.5]} 38... d4 {[%clk
0:10:25.7]} 39. Nxf5 {[%clk 0:09:40.8]} 39... g6 {[%clk 0:10:17.8]} 40. Ne7+
{[%clk 0:09:42]} 40... Kf7 {[%clk 0:10:12.5]} 41. Nc6 {[%clk 0:09:37]} 41... Bc3
{[%clk 0:10:07.7]} 42. f5 {[%clk 0:09:31.7]} 42... gxf5 {[%clk 0:09:56.7]} 43.
Rxf5+ {[%clk 0:09:32]} 43... Ke8 {[%clk 0:09:57.6]} 44. Re5+ {[%clk 0:09:27.3]}
44... Kd7 {[%clk 0:09:59.3]} 45. Nxd4 {[%clk 0:08:50.4]} 45... Rxd4 {[%clk
0:09:54.7]} 46. Rxe3 {[%clk 0:08:48.7]} 46... Re8 {[%clk 0:09:53.8]} 47. Rxe8
{[%clk 0:08:48]} 47... Kxe8 {[%clk 0:09:56.7]} 48. Ke3 {[%clk 0:08:47]} 48...
Rd7 {[%clk 0:09:58]} 49. h4 {[%clk 0:08:40]} 49... Re7+ {[%clk 0:09:56.7]} 50.
Kf2 {[%clk 0:08:40.8]} 50... Re1 {[%clk 0:09:57]} 51. Rxe1+ {[%clk 0:08:30.3]}
51... dxe1=Q+ {[%clk 0:09:57]} 52. Kg2 {[%clk 0:08:28.1]} 52... Qxh4 {[%clk
0:09:56.8]} 53. Kf1 {[%clk 0:08:28.2]} 53... Qg4 {[%clk 0:09:52.5]} 54. Kf2
{[%clk 0:08:26]} 54... Bd4+ {[%clk 0:09:54.2]} 55. Kf1 {[%clk 0:08:26.8]} 55...
Qf3+ {[%clk 0:09:52.2]} 56. Ke1 {[%clk 0:08:27.3]} 56... Bc3# {[%clk 0:09:53.8]}
0-1

[Event "Un Rapid per cominciare!"]
[Site "Chess.com"]
[Date "2020.04.10"]
[Round "2"]
[White "lionblu1"]
[Black "Luca090267"]
[Result "1-0"]
[WhiteElo "1273"]
[BlackElo "1008"]
[TimeControl "720+3"]
[EndTime "11:59:41 PDT"]
[Termination "lionblu1 ha vinto per abbandono"]

1. d4 {[%clk 0:12:02.6]} 1... Nf6 {[%clk 0:12:00.8]} 2. c4 {[%clk 0:12:02.5]}
2... g6 {[%clk 0:12:02.3]} 3. Nc3 {[%clk 0:12:03.8]} 3... Bg7 {[%clk 0:12:03.3]}
4. e4 {[%clk 0:12:03.7]} 4... d6 {[%clk 0:12:04.2]} 5. Be2 {[%clk 0:12:00.1]}
5... O-O {[%clk 0:12:05.9]} 6. Bg5 {[%clk 0:12:00.8]} 6... e5 {[%clk 0:11:39.2]}
7. dxe5 {[%clk 0:11:59.8]} 7... dxe5 {[%clk 0:11:39.8]} 8. Qxd8 {[%clk
0:11:57.3]} 8... Rxd8 {[%clk 0:11:40.6]} 9. Nd5 {[%clk 0:11:57.7]} 9... Rxd5
{[%clk 0:11:21.7]} 10. exd5 {[%clk 0:11:37.5]} 10... Nfd7 {[%clk 0:10:34.5]} 11.
O-O-O {[%clk 0:11:01.1]} 11... f5 {[%clk 0:10:34.6]} 12. Nf3 {[%clk 0:10:38.4]}
12... Nc5 {[%clk 0:10:20.6]} 13. Nd2 {[%clk 0:09:49.7]} 13... Nbd7 {[%clk
0:10:11.4]} 14. b4 {[%clk 0:09:21]} 14... Na4 {[%clk 0:09:58.6]} 15. Kc2 {[%clk
0:08:58.7]} 15... e4 {[%clk 0:09:30.6]} 16. f3 {[%clk 0:08:36.4]} 16... Nc3
{[%clk 0:09:25.5]} 17. Rde1 {[%clk 0:08:25.9]} 17... Nxe2 {[%clk 0:08:27.1]} 18.
Rxe2 {[%clk 0:08:24.8]} 18... h6 {[%clk 0:07:43]} 19. Be3 {[%clk 0:08:19.8]}
19... exf3 {[%clk 0:07:43.3]} 20. gxf3 {[%clk 0:08:18.9]} 20... Nf6 {[%clk
0:07:42.8]} 21. Rg1 {[%clk 0:08:07.5]} 21... Bd7 {[%clk 0:07:21.7]} 22. Rxg6
{[%clk 0:07:54.1]} 22... a6 {[%clk 0:07:20.9]} 23. Bxh6 {[%clk 0:07:48.8]} 23...
Nh5 {[%clk 0:07:06.5]} 24. Re7 {[%clk 0:07:25.1]} 24... Be8 {[%clk 0:07:00.6]}
25. Rgxg7+ {[%clk 0:07:03.5]} 25... Nxg7 {[%clk 0:07:01.3]} 26. Rxg7+ {[%clk
0:07:03.1]} 26... Kh8 {[%clk 0:07:00.7]} 1-0

[Event "Un Rapid per cominciare!"]
[Site "Chess.com"]
[Date "2020.04.10"]
[Round "2"]
[White "sergiodone"]
[Black "caramante"]
[Result "0-1"]
[WhiteElo "1322"]
[BlackElo "1390"]
[TimeControl "720+3"]
[EndTime "12:03:30 PDT"]
[Termination "caramante ha vinto per abbandono"]

1. e4 {[%clk 0:10:40.4]} 1... c5 {[%clk 0:11:59]} 2. Nf3 {[%clk 0:10:40.2]} 2...
d6 {[%clk 0:12:00.9]} 3. Bc4 {[%clk 0:10:39.3]} 3... e6 {[%clk 0:12:02]} 4. c3
{[%clk 0:10:40.7]} 4... a6 {[%clk 0:12:03.2]} 5. d4 {[%clk 0:10:42.4]} 5... b5
{[%clk 0:12:04.4]} 6. Bb3 {[%clk 0:10:41]} 6... c4 {[%clk 0:12:05.5]} 7. Bc2
{[%clk 0:10:42.7]} 7... Bb7 {[%clk 0:12:06.7]} 8. h3 {[%clk 0:10:35.6]} 8... Be7
{[%clk 0:12:08.4]} 9. Qe2 {[%clk 0:10:37.3]} 9... Qc7 {[%clk 0:12:10.2]} 10.
Nbd2 {[%clk 0:10:27]} 10... Nf6 {[%clk 0:12:11]} 11. O-O {[%clk 0:10:20.4]}
11... Nbd7 {[%clk 0:12:12]} 12. Re1 {[%clk 0:10:17.1]} 12... O-O {[%clk
0:12:12.6]} 13. e5 {[%clk 0:10:15.1]} 13... Nd5 {[%clk 0:12:10.9]} 14. Ne4
{[%clk 0:10:12.3]} 14... dxe5 {[%clk 0:12:11.8]} 15. dxe5 {[%clk 0:10:04.6]}
15... Nxe5 {[%clk 0:12:00.9]} 16. Nxe5 {[%clk 0:10:05.5]} 16... Qxe5 {[%clk
0:12:00.2]} 17. g3 {[%clk 0:09:27.8]} 17... Qc7 {[%clk 0:11:36.2]} 18. Qh5
{[%clk 0:09:18.8]} 18... g6 {[%clk 0:11:30.4]} 19. Qh6 {[%clk 0:09:02.8]} 19...
Rfd8 {[%clk 0:11:19]} 20. Ng5 {[%clk 0:09:01.5]} 20... Nf6 {[%clk 0:11:11.8]}
21. Qh4 {[%clk 0:08:37.9]} 21... h5 {[%clk 0:10:56.4]} 22. Qf4 {[%clk
0:08:02.5]} 22... Qxf4 {[%clk 0:10:53.3]} 23. gxf4 {[%clk 0:08:02.7]} 23... Rd7
{[%clk 0:10:24.9]} 24. Be3 {[%clk 0:08:00.9]} 24... Nd5 {[%clk 0:10:16]} 25.
Rad1 {[%clk 0:07:13.4]} 25... Rad8 {[%clk 0:10:11.9]} 26. h4 {[%clk 0:06:39.1]}
26... Nf6 {[%clk 0:09:55.4]} 27. Bd4 {[%clk 0:06:26.2]} 27... Ng4 {[%clk
0:09:49.7]} 28. Be4 {[%clk 0:06:06.2]} 28... Bxg5 {[%clk 0:09:16.4]} 29. f5
{[%clk 0:05:58.2]} 29... Bxe4 {[%clk 0:08:58.1]} 30. Rxe4 {[%clk 0:05:52.1]}
30... gxf5 {[%clk 0:08:51.7]} 31. Re2 {[%clk 0:05:42]} 31... Bxh4 {[%clk
0:08:51.6]} 32. Kg2 {[%clk 0:05:41.1]} 32... e5 {[%clk 0:08:45.6]} 33. f3 {[%clk
0:05:39.1]} 33... exd4 {[%clk 0:08:31.1]} 34. fxg4 {[%clk 0:05:40.6]} 34... d3
{[%clk 0:08:26.2]} 35. Re5 {[%clk 0:05:32.1]} 35... Rd5 {[%clk 0:08:14]} 36.
Rxf5 {[%clk 0:05:30.2]} 36... Rxf5 {[%clk 0:08:12.3]} 37. gxf5 {[%clk
0:05:31.7]} 37... Kg7 {[%clk 0:08:13.2]} 38. Kf3 {[%clk 0:05:33.5]} 38... Kf6
{[%clk 0:08:13.7]} 39. Ke4 {[%clk 0:05:34.4]} 39... Re8+ {[%clk 0:08:12.1]} 40.
Kf3 {[%clk 0:05:22.2]} 40... Re1 {[%clk 0:08:10.3]} 41. Rd2 {[%clk 0:04:42.6]}
41... Bg5 {[%clk 0:08:07.9]} 42. Rg2 {[%clk 0:04:43.8]} 42... d2 {[%clk
0:08:06.9]} 0-1

[Event "Un Rapid per cominciare!"]
[Site "Chess.com"]
[Date "2020.04.10"]
[Round "2"]
[White "MarcoCiva"]
[Black "SanSecondoPR"]
[Result "1-0"]
[WhiteElo "1958"]
[BlackElo "1267"]
[TimeControl "720+3"]
[EndTime "12:05:18 PDT"]
[Termination "MarcoCiva ha vinto per abbandono"]

1. d4 {[%clk 0:12:02.8]} 1... d5 {[%clk 0:12:00.5]} 2. c4 {[%clk 0:12:03.5]}
2... e5 {[%clk 0:12:01.2]} 3. e3 {[%clk 0:11:46.3]} 3... Bb4+ {[%clk 0:11:52.9]}
4. Nc3 {[%clk 0:11:39.8]} 4... Nc6 {[%clk 0:11:47]} 5. a3 {[%clk 0:11:38.4]}
5... Bxc3+ {[%clk 0:11:45.2]} 6. bxc3 {[%clk 0:11:39.9]} 6... Nf6 {[%clk
0:11:41.2]} 7. Bd3 {[%clk 0:11:30.8]} 7... e4 {[%clk 0:11:40.3]} 8. Be2 {[%clk
0:11:24.2]} 8... O-O {[%clk 0:11:30.7]} 9. f3 {[%clk 0:11:20.5]} 9... Ne7 {[%clk
0:11:22.3]} 10. cxd5 {[%clk 0:11:18.8]} 10... exf3 {[%clk 0:11:17.9]} 11. Nxf3
{[%clk 0:11:05.3]} 11... Nexd5 {[%clk 0:11:10.1]} 12. Qc2 {[%clk 0:10:37.4]}
12... Re8 {[%clk 0:11:03.8]} 13. Ne5 {[%clk 0:10:12.4]} 13... Bf5 {[%clk
0:10:47.1]} 14. Qxf5 {[%clk 0:09:42.3]} 14... Nxc3 {[%clk 0:10:34.6]} 15. Qc2
{[%clk 0:09:17.2]} 15... Nfd5 {[%clk 0:10:23.3]} 16. O-O {[%clk 0:09:02.8]}
16... Qh4 {[%clk 0:10:08.7]} 17. Bc4 {[%clk 0:07:34.1]} 17... f6 {[%clk
0:09:27.3]} 18. Bxd5+ {[%clk 0:07:16.3]} 18... Nxd5 {[%clk 0:09:26.3]} 19. Qc4
{[%clk 0:07:08.7]} 19... c6 {[%clk 0:09:21.9]} 20. Nf3 {[%clk 0:06:11.7]} 20...
Qe4 {[%clk 0:09:16.1]} 21. Re1 {[%clk 0:05:41]} 21... Kh8 {[%clk 0:09:10.9]} 22.
Qb3 {[%clk 0:05:34.8]} 22... Nf4 {[%clk 0:08:43.6]} 23. exf4 {[%clk 0:05:14.1]}
23... Qxe1+ {[%clk 0:07:45.2]} 24. Nxe1 {[%clk 0:05:15.7]} 24... Rxe1+ {[%clk
0:07:45.3]} 25. Kf2 {[%clk 0:05:17.5]} 25... Rae8 {[%clk 0:07:44.6]} 26. Qxb7
{[%clk 0:04:44.7]} 26... R8e2+ {[%clk 0:07:41]} 27. Kg3 {[%clk 0:04:44.4]} 27...
Re7 {[%clk 0:07:39]} 28. Qxc6 {[%clk 0:04:34.8]} 28... h5 {[%clk 0:07:34]} 29.
Bb2 {[%clk 0:04:33.5]} 29... R1e3+ {[%clk 0:07:30.7]} 30. Kf2 {[%clk 0:04:28.7]}
30... Re2+ {[%clk 0:07:28]} 31. Kf1 {[%clk 0:04:09.4]} 31... R2e4 {[%clk
0:07:16.9]} 32. g3 {[%clk 0:03:44.9]} 32... h4 {[%clk 0:07:07.7]} 33. Qd5 {[%clk
0:03:26.1]} 33... hxg3 {[%clk 0:07:02.1]} 34. hxg3 {[%clk 0:03:27.3]} 34... f5
{[%clk 0:06:35.9]} 35. Qxf5 {[%clk 0:03:22.4]} 35... Re2 {[%clk 0:06:26.6]} 36.
Qh5+ {[%clk 0:03:12.2]} 36... Kg8 {[%clk 0:06:21.3]} 37. Qxe2 {[%clk 0:03:13.9]}
1-0

[Event "Un Rapid per cominciare!"]
[Site "Chess.com"]
[Date "2020.04.10"]
[Round "2"]
[White "francesco_visen"]
[Black "freudstein"]
[Result "1-0"]
[WhiteElo "1568"]
[BlackElo "1366"]
[TimeControl "720+3"]
[EndTime "12:06:01 PDT"]
[Termination "francesco_visen ha vinto per abbandono"]

1. e4 {[%clk 0:11:56]} 1... e6 {[%clk 0:11:54.6]} 2. d4 {[%clk 0:11:52.4]} 2...
d5 {[%clk 0:11:56]} 3. e5 {[%clk 0:11:51.3]} 3... c5 {[%clk 0:11:57]} 4. Nf3
{[%clk 0:11:47.4]} 4... Nc6 {[%clk 0:11:55.9]} 5. c3 {[%clk 0:11:43.6]} 5...
cxd4 {[%clk 0:11:56.4]} 6. cxd4 {[%clk 0:11:42.1]} 6... Nge7 {[%clk 0:11:52.6]}
7. Bb5 {[%clk 0:11:33.2]} 7... Qb6 {[%clk 0:11:47.8]} 8. Nc3 {[%clk 0:11:30]}
8... Nf5 {[%clk 0:11:35.6]} 9. O-O {[%clk 0:11:22]} 9... Be7 {[%clk 0:11:27.7]}
10. Bxc6+ {[%clk 0:10:29.8]} 10... bxc6 {[%clk 0:11:19.1]} 11. Re1 {[%clk
0:10:14.8]} 11... Ba6 {[%clk 0:11:13.8]} 12. Na4 {[%clk 0:10:09.2]} 12... Qc7
{[%clk 0:11:01.7]} 13. Nc5 {[%clk 0:09:45.4]} 13... Bxc5 {[%clk 0:10:58.3]} 14.
dxc5 {[%clk 0:09:44.4]} 14... O-O {[%clk 0:10:56.8]} 15. Bd2 {[%clk 0:09:25.9]}
15... Rab8 {[%clk 0:10:45.8]} 16. b3 {[%clk 0:09:24.5]} 16... Rb5 {[%clk
0:10:13.3]} 17. Rc1 {[%clk 0:09:03.9]} 17... Rbb8 {[%clk 0:08:31.9]} 18. Qc2
{[%clk 0:08:13.2]} 18... Rbd8 {[%clk 0:06:42.2]} 19. g4 {[%clk 0:06:57.3]} 19...
Ne7 {[%clk 0:06:32.6]} 20. Nd4 {[%clk 0:06:57.9]} 20... Ng6 {[%clk 0:06:19.2]}
21. f4 {[%clk 0:06:30.7]} 21... Rc8 {[%clk 0:05:45.1]} 22. Qc3 {[%clk
0:06:15.9]} 22... Qe7 {[%clk 0:05:37.7]} 23. f5 {[%clk 0:06:09.6]} 23... exf5
{[%clk 0:05:26.8]} 24. gxf5 {[%clk 0:06:03.2]} 24... Nxe5 {[%clk 0:05:14.7]} 25.
Nxc6 {[%clk 0:05:37.6]} 25... Rxc6 {[%clk 0:05:02.5]} 26. Rxe5 {[%clk
0:05:34.3]} 26... Qd7 {[%clk 0:03:36.3]} 27. Rce1 {[%clk 0:04:45.8]} 27... d4
{[%clk 0:03:19.7]} 28. Qg3 {[%clk 0:04:44.1]} 28... f6 {[%clk 0:03:01.5]} 1-0

[Event "Un Rapid per cominciare!"]
[Site "Chess.com"]
[Date "2020.04.10"]
[Round "2"]
[White "sirmale49"]
[Black "rob_fio"]
[Result "1-0"]
[WhiteElo "1429"]
[BlackElo "1562"]
[TimeControl "720+3"]
[EndTime "12:07:58 PDT"]
[Termination "sirmale49 ha vinto per abbandono"]

1. e4 {[%clk 0:11:56.6]} 1... d6 {[%clk 0:12:01.9]} 2. f4 {[%clk 0:11:57.3]}
2... Nf6 {[%clk 0:12:03.5]} 3. Nc3 {[%clk 0:11:55.7]} 3... Nbd7 {[%clk
0:12:05.1]} 4. d4 {[%clk 0:11:51.3]} 4... c6 {[%clk 0:12:06.4]} 5. Nf3 {[%clk
0:11:52.9]} 5... Qc7 {[%clk 0:12:08.2]} 6. Bc4 {[%clk 0:11:41.2]} 6... h6 {[%clk
0:12:08.9]} 7. O-O {[%clk 0:11:28.4]} 7... e5 {[%clk 0:12:10]} 8. dxe5 {[%clk
0:11:07.5]} 8... dxe5 {[%clk 0:12:12.9]} 9. f5 {[%clk 0:10:51.3]} 9... Be7
{[%clk 0:12:02.6]} 10. h3 {[%clk 0:10:40.6]} 10... a5 {[%clk 0:12:04.6]} 11. Be3
{[%clk 0:10:31.2]} 11... b5 {[%clk 0:12:06.4]} 12. Be2 {[%clk 0:10:19.2]} 12...
b4 {[%clk 0:11:52.8]} 13. Na4 {[%clk 0:10:05.2]} 13... Nxe4 {[%clk 0:11:50.7]}
14. Qe1 {[%clk 0:09:00.7]} 14... Ndc5 {[%clk 0:11:38.4]} 15. b3 {[%clk
0:08:18.2]} 15... Nxa4 {[%clk 0:11:27.4]} 16. bxa4 {[%clk 0:08:18.8]} 16... Bxf5
{[%clk 0:11:29.3]} 17. Bd3 {[%clk 0:08:03.4]} 17... Bg6 {[%clk 0:11:11.5]} 18.
Bxe4 {[%clk 0:07:40.4]} 18... Bxe4 {[%clk 0:11:14.4]} 19. Qf2 {[%clk 0:07:32.4]}
19... O-O {[%clk 0:10:56.4]} 20. Rac1 {[%clk 0:07:19.6]} 20... Bd5 {[%clk
0:09:54.6]} 21. c3 {[%clk 0:06:53.2]} 21... bxc3 {[%clk 0:09:42.1]} 22. Rxc3
{[%clk 0:06:44.3]} 22... Bf6 {[%clk 0:09:41.2]} 23. Bb6 {[%clk 0:06:22.1]} 23...
Qc8 {[%clk 0:09:26.8]} 24. Qd2 {[%clk 0:06:01.8]} 24... Qe6 {[%clk 0:09:13.1]}
25. Bf2 {[%clk 0:05:06.2]} 25... e4 {[%clk 0:09:07.6]} 26. Nd4 {[%clk
0:05:05.4]} 26... Bxd4 {[%clk 0:08:55.9]} 27. Qxd4 {[%clk 0:05:04.1]} 27... Qg6
{[%clk 0:08:44.4]} 28. Be3 {[%clk 0:04:53.1]} 28... Bxa2 {[%clk 0:08:17.7]} 29.
Rf4 {[%clk 0:04:34.7]} 29... Rad8 {[%clk 0:08:10.8]} 30. Qe5 {[%clk 0:04:03.1]}
30... Bd5 {[%clk 0:07:36.2]} 31. Rg4 {[%clk 0:04:02.1]} 31... f6 {[%clk
0:07:08.3]} 32. Qg3 {[%clk 0:03:47]} 32... Qh7 {[%clk 0:06:31]} 33. Qh4 {[%clk
0:03:33.8]} 33... f5 {[%clk 0:06:28]} 34. Rg3 {[%clk 0:02:59.1]} 34... Rf6
{[%clk 0:06:14.6]} 35. Bd4 {[%clk 0:02:54.6]} 35... Rg6 {[%clk 0:06:12.3]} 36.
Qxd8+ {[%clk 0:02:49.6]} 36... Kf7 {[%clk 0:06:07.5]} 37. Qd7+ {[%clk
0:02:37.4]} 37... Kf8 {[%clk 0:06:01.3]} 38. Qxf5+ {[%clk 0:02:12]} 38... Kg8
{[%clk 0:05:50.9]} 39. Rxg6 {[%clk 0:02:11.6]} 39... Bf7 {[%clk 0:05:51.2]} 40.
Rxg7+ {[%clk 0:02:08.4]} 40... Qxg7 {[%clk 0:05:48.4]} 41. Bxg7 {[%clk
0:02:08.7]} 41... Kxg7 {[%clk 0:05:51.3]} 42. Qxe4 {[%clk 0:02:04.7]} 42... Kf6
{[%clk 0:05:41.5]} 43. Rxc6+ {[%clk 0:02:05.5]} 43... Kg7 {[%clk 0:05:42.8]} 44.
Qe7 {[%clk 0:02:05.9]} 44... Kg8 {[%clk 0:05:43.4]} 45. Rc8+ {[%clk 0:02:06.1]}
45... Kg7 {[%clk 0:05:43.8]} 46. Qf8+ {[%clk 0:02:04.3]} 46... Kf6 {[%clk
0:05:45.3]} 47. Rc6+ {[%clk 0:02:05]} 1-0

[Event "Un Rapid per cominciare!"]
[Site "Chess.com"]
[Date "2020.04.10"]
[Round "2"]
[White "Delsoldato03"]
[Black "markk000"]
[Result "0-1"]
[WhiteElo "1193"]
[BlackElo "1533"]
[TimeControl "720+3"]
[EndTime "12:11:30 PDT"]
[Termination "markk000 ha vinto per scaccomatto"]

1. d4 {[%clk 0:12:02.9]} 1... Nf6 {[%clk 0:12:00.6]} 2. c4 {[%clk 0:12:01.1]}
2... g6 {[%clk 0:12:02.2]} 3. Nc3 {[%clk 0:11:59.8]} 3... Bg7 {[%clk 0:11:58.8]}
4. e4 {[%clk 0:11:56.3]} 4... O-O {[%clk 0:11:44.7]} 5. Be3 {[%clk 0:11:52.5]}
5... d6 {[%clk 0:11:46.6]} 6. f3 {[%clk 0:11:52.4]} 6... Nbd7 {[%clk 0:11:46.2]}
7. Bd3 {[%clk 0:11:38.8]} 7... c5 {[%clk 0:11:47.3]} 8. Nge2 {[%clk 0:11:19.9]}
8... Qb6 {[%clk 0:11:29]} 9. Qd2 {[%clk 0:10:43]} 9... Nh5 {[%clk 0:11:00.8]}
10. d5 {[%clk 0:09:56]} 10... Ne5 {[%clk 0:10:51.1]} 11. Rb1 {[%clk 0:09:29]}
11... f5 {[%clk 0:10:04.9]} 12. O-O {[%clk 0:08:59.3]} 12... fxe4 {[%clk
0:09:54.5]} 13. Bxe4 {[%clk 0:08:37.6]} 13... Nxc4 {[%clk 0:09:43.4]} 14. Qc1
{[%clk 0:08:07.5]} 14... Nxe3 {[%clk 0:08:54.5]} 15. Qxe3 {[%clk 0:08:07]} 15...
Nf6 {[%clk 0:08:49.7]} 16. Bc2 {[%clk 0:07:12.9]} 16... Qc7 {[%clk 0:08:10.8]}
17. Rfe1 {[%clk 0:06:26.9]} 17... Nh5 {[%clk 0:07:40]} 18. Kh1 {[%clk
0:05:37.3]} 18... a6 {[%clk 0:07:16.3]} 19. Ng1 {[%clk 0:04:48.2]} 19... Re8
{[%clk 0:05:44.6]} 20. Ne4 {[%clk 0:04:20.9]} 20... Bf5 {[%clk 0:04:07.5]} 21.
Re2 {[%clk 0:03:28.1]} 21... Bxe4 {[%clk 0:03:51]} 22. fxe4 {[%clk 0:02:55.3]}
22... Rf8 {[%clk 0:03:29.5]} 23. Nf3 {[%clk 0:02:51]} 23... Nf4 {[%clk 0:03:26]}
24. Ree1 {[%clk 0:02:38.2]} 24... Rae8 {[%clk 0:03:15.6]} 25. b3 {[%clk
0:02:27.7]} 25... b5 {[%clk 0:03:01.3]} 26. Bd3 {[%clk 0:02:05.7]} 26... Bc3
{[%clk 0:02:46.8]} 27. Rec1 {[%clk 0:01:58.4]} 27... Bg7 {[%clk 0:02:35.8]} 28.
Ng5 {[%clk 0:01:46.5]} 28... Bd4 {[%clk 0:02:26.3]} 29. Qxd4 {[%clk 0:01:41.6]}
29... cxd4 {[%clk 0:02:24.7]} 30. Rxc7 {[%clk 0:01:42.8]} 30... Nxd3 {[%clk
0:02:27.1]} 31. Nf3 {[%clk 0:01:21.7]} 31... Nf2+ {[%clk 0:02:25.2]} 32. Kg1
{[%clk 0:01:21.6]} 32... Nxe4 {[%clk 0:02:27.2]} 33. Nxd4 {[%clk 0:01:20.2]}
33... Nc5 {[%clk 0:02:29]} 34. Ne6 {[%clk 0:01:20.8]} 34... Nxe6 {[%clk
0:02:30]} 35. dxe6 {[%clk 0:01:18.9]} 35... Rf6 {[%clk 0:02:32]} 36. Re1 {[%clk
0:01:16.1]} 36... Kf8 {[%clk 0:02:28.3]} 37. Ra7 {[%clk 0:01:16.7]} 37... Rc8
{[%clk 0:02:18.7]} 38. Rxa6 {[%clk 0:01:17.3]} 38... Rc2 {[%clk 0:02:20.3]} 39.
Ra5 {[%clk 0:01:17.2]} 39... Rff2 {[%clk 0:02:21.1]} 40. Ra8+ {[%clk 0:01:15.3]}
40... Kg7 {[%clk 0:02:22]} 41. Rf1 {[%clk 0:01:17.1]} 41... Rxg2+ {[%clk
0:02:23.3]} 42. Kh1 {[%clk 0:01:17.2]} 42... Rxh2+ {[%clk 0:02:26.2]} 43. Kg1
{[%clk 0:01:19.1]} 43... Rcg2# {[%clk 0:02:29.1]} 0-1